[Event "44th Chess Olympiad Open 2022"]
[Site "Chennai"]
[Date "2022.08.06"]
[Round "8.81"]
[White "Shaw, Clifford"]
[Black "Muhammed, Shuaau"]
[Result "0-1"]
[WhiteElo "1615"]
[BlackElo "1987"]
[Annotator "NA RC"]
[PlyCount "52"]
[EventDate "2022.??.??"]
[TimeControl "60"]

1. f4 {[%emt 0:00:03]} d5 {[%emt 0:00:05]} 2. Nf3 {[%emt 0:00:02]} c5 {[%emt 0:
00:00]} 3. e3 {[%emt 0:00:05]} Nf6 {[%emt 0:00:21]} 4. b3 {[%emt 0:00:17]} g6 {
[%emt 0:00:34]} 5. Bb2 {[%emt 0:00:08]} Bg7 {[%emt 0:00:04]} 6. Be2 {[%emt 0:
00:00]} Nc6 {[%emt 0:02:17]} 7. O-O {[%emt 0:00:08]} O-O {[%emt 0:00:09]} 8.
Ne5 {[%emt 0:03:50]} Nd7 {[%emt 0:08:02]} 9. Nxc6 {[%emt 0:00:48]} bxc6 {
[%emt 0:00:11]} 10. Bxg7 {[%emt 0:00:05]} Kxg7 {[%emt 0:00:03]} 11. d3 {
[%emt 0:01:56]} e5 {[%emt 0:01:07]} 12. Nd2 {[%emt 0:01:10]} Qe7 {[%emt 0:00:
00]} 13. Kh1 {[%emt 0:12:11]} Re8 {[%emt 0:08:44]} 14. f5 {[%emt 0:02:54]} gxf5
{[%emt 0:06:19]} 15. Rxf5 {[%emt 0:03:46]} Nf8 {[%emt 0:00:35]} 16. Rf3 {
[%emt 0:01:25]} f5 {[%emt 0:04:01]} 17. e4 {[%emt 0:04:43]} f4 {[%emt 0:02:27]}
18. g3 {[%emt 0:04:30]} Ng6 {[%emt 0:05:01]} 19. Qg1 {[%emt 0:12:33]} Kh8 {
[%emt 0:04:00]} 20. Rf2 {[%emt 0:06:54]} Be6 {[%emt 0:07:43]} 21. Bh5 {[%emt 0:
00:00]} Rg8 {[%emt 0:00:36]} 22. Qf1 {[%emt 0:07:54]} fxg3 {[%emt 0:03:31]} 23.
hxg3 {[%emt 0:01:04]} Qg5 {[%emt 0:01:03]} 24. Bxg6 {[%emt 0:12:26]} Rxg6 {
[%emt 0:02:52]} 25. Rf8+ {[%emt 0:10:20]} Kg7 {[%emt 0:05:53]} 26. Rxa8 {
[%emt 0:01:40]} Qh6+ {[%emt 0:00:15]} 0-1

[Event "44th Chess Olympiad Open 2022"]
[Site "Chennai"]
[Date "2022.08.06"]
[Round "8.81"]
[White "Mujahid Bin Yazeed"]
[Black "Powell, Malcolm"]
[Result "1-0"]
[WhiteElo "1418"]
[BlackElo "1218"]
[Annotator "NA RC"]
[PlyCount "69"]
[EventDate "2022.??.??"]
[TimeControl "60"]

1. e4 {[%emt 0:00:03]} c6 {[%emt 0:00:04]} 2. d4 {[%emt 0:00:06]} d5 {[%emt 0:
00:00]} 3. Nc3 {[%emt 0:00:13]} e6 {[%emt 0:03:07]} 4. Nf3 {[%emt 0:06:30]} Bb4
{[%emt 0:00:57]} 5. Bd3 {[%emt 0:01:08]} Ne7 {[%emt 0:08:01]} 6. a3 {[%emt 0:
00:00]} Bxc3+ {[%emt 0:03:41]} 7. bxc3 {[%emt 0:00:06]} O-O {[%emt 0:00:10]} 8.
e5 {[%emt 0:00:20]} Nd7 {[%emt 0:00:42]} 9. h4 {[%emt 0:03:30]} f6 {[%emt 0:00:
00]} 10. Qe2 {[%emt 0:05:34]} c5 {[%emt 0:09:43]} 11. Bb5 {[%emt 0:05:16]} c4 {
[%emt 0:04:39]} 12. Bxd7 {[%emt 0:01:00]} Bxd7 {[%emt 0:00:05]} 13. exf6 {
[%emt 0:00:41]} Rxf6 {[%emt 0:00:14]} 14. Bg5 {[%emt 0:00:21]} Rf8 {[%emt 0:00:
00]} 15. Ne5 {[%emt 0:01:44]} Qe8 {[%emt 0:00:24]} 16. Bxe7 {[%emt 0:05:56]}
Qxe7 {[%emt 0:00:09]} 17. O-O {[%emt 0:05:23]} Rf6 {[%emt 0:08:22]} 18. f4 {
[%emt 0:03:42]} Raf8 {[%emt 0:03:05]} 19. g3 {[%emt 0:03:52]} Rf5 {[%emt 0:00:
00]} 20. Rfe1 {[%emt 0:01:03]} Be8 {[%emt 0:01:05]} 21. Qh2 {[%emt 0:03:45]}
R8f6 {[%emt 0:04:28]} 22. Ng4 {[%emt 0:01:49]} Rf8 {[%emt 0:01:39]} 23. Ne3 {
[%emt 0:03:25]} Rh5 {[%emt 0:03:05]} 24. Ng2 {[%emt 0:01:06]} Rhf5 {[%emt 0:00:
00]} 25. g4 {[%emt 0:01:33]} R5f6 {[%emt 0:00:19]} 26. Re5 {[%emt 0:12:08]} Qf7
{[%emt 0:04:34]} 27. Rae1 {[%emt 0:01:37]} Bd7 {[%emt 0:01:24]} 28. Qg3 {
[%emt 0:02:52]} h6 {[%emt 0:06:27]} 29. g5 {[%emt 0:05:50]} hxg5 {[%emt 0:00:
00]} 30. hxg5 {[%emt 0:01:41]} Qg6 {[%emt 0:01:38]} 31. Nh4 {[%emt 0:02:01]}
Qxc2 {[%emt 0:03:31]} 32. gxf6 {[%emt 0:02:35]} Rxf6 {[%emt 0:01:00]} 33. Rg5 {
[%emt 0:01:31]} Rf7 {[%emt 0:02:06]} 34. Ng6 {[%emt 0:00:18]} Qd2 {[%emt 0:00:
00]} 35. Rh5 {[%emt 0:00:44]} 1-0

[Event "44th Chess Olympiad Open 2022"]
[Site "Chennai"]
[Date "2022.08.06"]
[Round "8.82"]
[White "Karelina, Polina"]
[Black "Elvis Havyarimana"]
[Result "1/2-1/2"]
[WhiteElo "1835"]
[BlackElo "1724"]
[Annotator "NA RC"]
[PlyCount "61"]
[EventDate "2022.??.??"]
[TimeControl "60"]

1. e4 {[%emt 0:00:10]} e6 {[%emt 0:00:05]} 2. d4 {[%emt 0:00:17]} d5 {[%emt 0:
00:00]} 3. exd5 {[%emt 0:00:15]} exd5 {[%emt 0:00:08]} 4. Bf4 {[%emt 0:00:21]}
Nf6 {[%emt 0:00:08]} 5. Nf3 {[%emt 0:01:07]} Bd6 {[%emt 0:00:22]} 6. Bg3 {
[%emt 0:02:01]} O-O {[%emt 0:00:05]} 7. Be2 {[%emt 0:02:47]} Be6 {[%emt 0:00:
00]} 8. Nbd2 {[%emt 0:01:26]} h6 {[%emt 0:00:36]} 9. c3 {[%emt 0:03:55]} c6 {
[%emt 0:05:26]} 10. Qc2 {[%emt 0:06:29]} a5 {[%emt 0:01:24]} 11. a4 {[%emt 0:
00:00]} Na6 {[%emt 0:00:30]} 12. Bxd6 {[%emt 0:05:20]} Qxd6 {[%emt 0:00:22]}
13. Bxa6 {[%emt 0:00:09]} Rxa6 {[%emt 0:02:53]} 14. O-O {[%emt 0:00:18]} Re8 {
[%emt 0:01:06]} 15. Rfe1 {[%emt 0:00:57]} Raa8 {[%emt 0:01:16]} 16. h3 {
[%emt 0:03:55]} Re7 {[%emt 0:02:59]} 17. Re2 {[%emt 0:01:53]} Rae8 {[%emt 0:00:
00]} 18. Rae1 {[%emt 0:02:19]} Bf5 {[%emt 0:09:01]} 19. Qxf5 {[%emt 0:19:00]}
Rxe2 {[%emt 0:00:29]} 20. Rxe2 {[%emt 0:00:07]} Rxe2 {[%emt 0:00:06]} 21. Qc8+
{[%emt 0:00:23]} Re8 {[%emt 0:00:16]} 22. Qxb7 {[%emt 0:03:04]} Rb8 {[%emt 0:
00:00]} 23. Qa7 {[%emt 0:01:54]} Rxb2 {[%emt 0:00:15]} 24. Ne5 {[%emt 0:02:32]}
Qe6 {[%emt 0:05:13]} 25. Ndf3 {[%emt 0:00:35]} Ne4 {[%emt 0:02:12]} 26. Qxa5 {
[%emt 0:11:18]} f6 {[%emt 0:01:20]} 27. Qd8+ {[%emt 0:03:21]} Kh7 {[%emt 0:00:
00]} 28. Nd7 {[%emt 0:00:29]} Qg8 {[%emt 0:23:16]} 29. Nf8+ {[%emt 0:01:01]}
Kh8 {[%emt 0:00:02]} 30. Ng6+ {[%emt 0:00:11]} Kh7 {[%emt 0:00:02]} 31. Nf8+ {
[%emt 0:00:12]} 1/2-1/2

[Event "44th Chess Olympiad Open 2022"]
[Site "Chennai"]
[Date "2022.08.06"]
[Round "8.82"]
[White "Mutabazi Hugues"]
[Black "Knowles, Kendrick"]
[Result "0-1"]
[WhiteElo "1666"]
[BlackElo "1907"]
[Annotator "NA RC"]
[PlyCount "46"]
[EventDate "2022.??.??"]
[TimeControl "60"]

1. e4 {[%emt 0:00:20]} d5 {[%emt 0:02:45]} 2. exd5 {[%emt 0:00:15]} Nf6 {
[%emt 0:01:15]} 3. d4 {[%emt 0:00:07]} Nxd5 {[%emt 0:00:32]} 4. c4 {[%emt 0:00:
00]} Nb6 {[%emt 0:01:29]} 5. Nc3 {[%emt 0:01:01]} e5 {[%emt 0:00:53]} 6. d5 {
[%emt 0:09:34]} Bb4 {[%emt 0:00:59]} 7. Qc2 {[%emt 0:00:13]} c6 {[%emt 0:00:41]
} 8. a3 {[%emt 0:05:04]} Bxc3+ {[%emt 0:00:47]} 9. Qxc3 {[%emt 0:00:07]} O-O {
[%emt 0:00:22]} 10. dxc6 {[%emt 0:02:04]} Nxc6 {[%emt 0:00:41]} 11. Be3 {
[%emt 0:02:24]} Bg4 {[%emt 0:03:38]} 12. Be2 {[%emt 0:02:20]} Qh4 {[%emt 0:00:
00]} 13. Bxb6 {[%emt 0:02:07]} axb6 {[%emt 0:00:44]} 14. h3 {[%emt 0:00:26]}
Bxe2 {[%emt 0:00:34]} 15. Nxe2 {[%emt 0:00:04]} Qe4 {[%emt 0:02:00]} 16. Kf1 {
[%emt 0:01:56]} Rfd8 {[%emt 0:03:41]} 17. f3 {[%emt 0:03:33]} Qh4 {[%emt 0:00:
00]} 18. g3 {[%emt 0:03:31]} Qg5 {[%emt 0:02:59]} 19. Kf2 {[%emt 0:04:27]} Qd2
{[%emt 0:03:10]} 20. Rac1 {[%emt 0:11:03]} Rd3 {[%emt 0:03:37]} 21. Rc2 {
[%emt 0:04:19]} Qe3+ {[%emt 0:00:08]} 22. Kg2 {[%emt 0:02:09]} Qxf3+ {[%emt 0:
00:00]} 23. Kh2 {[%emt 0:00:22]} Qf2# {[%emt 0:02:52]} 0-1

[Event "44th Chess Olympiad Open 2022"]
[Site "Chennai"]
[Date "2022.08.06"]
[Round "8.83"]
[White "Dabuae, Thubalkain"]
[Black "Mohamed Ali Dima"]
[Result "0-1"]
[WhiteElo "1941"]
[BlackElo "1582"]
[Annotator "NA RC"]
[PlyCount "96"]
[EventDate "2022.??.??"]
[TimeControl "60"]

1. e4 {[%emt 0:00:13]} d5 {[%emt 0:00:48]} 2. exd5 {[%emt 0:00:22]} Nf6 {
[%emt 0:00:06]} 3. Nf3 {[%emt 0:00:16]} Bg4 {[%emt 0:00:06]} 4. Bb5+ {[%emt 0:
00:00]} Bd7 {[%emt 0:02:27]} 5. Bxd7+ {[%emt 0:01:11]} Nbxd7 {[%emt 0:00:04]}
6. c4 {[%emt 0:00:16]} g6 {[%emt 0:01:33]} 7. O-O {[%emt 0:00:17]} Bg7 {
[%emt 0:00:11]} 8. Nc3 {[%emt 0:00:33]} O-O {[%emt 0:00:17]} 9. d3 {[%emt 0:00:
00]} c6 {[%emt 0:00:35]} 10. dxc6 {[%emt 0:00:09]} bxc6 11. Re1 {[%emt 0:01:00]
} e6 {[%emt 0:00:57]} 12. Bg5 {[%emt 0:00:23]} Qc7 {[%emt 0:00:47]} 13. Rc1 {
[%emt 0:01:31]} h6 {[%emt 0:02:37]} 14. Bh4 {[%emt 0:00:33]} Nh5 {[%emt 0:00:
00]} 15. Bg3 {[%emt 0:01:21]} Nxg3 {[%emt 0:00:04]} 16. fxg3 {[%emt 0:00:20]}
Qb6+ {[%emt 0:00:22]} 17. Kh1 {[%emt 0:01:45]} Qxb2 {[%emt 0:00:29]} 18. Rc2 {
[%emt 0:00:49]} Qa3 {[%emt 0:00:52]} 19. Ne4 {[%emt 0:00:11]} Rab8 {[%emt 0:00:
00]} 20. Qe2 {[%emt 0:00:07]} Rb2 {[%emt 0:01:38]} 21. Rxb2 {[%emt 0:00:17]}
Bxb2 {[%emt 0:00:25]} 22. Rb1 {[%emt 0:00:18]} Rb8 {[%emt 0:01:51]} 23. h4 {
[%emt 0:00:15]} Qxa2 {[%emt 0:00:19]} 24. Qc2 {[%emt 0:00:21]} Qa3 {[%emt 0:00:
00]} 25. Nfd2 {[%emt 0:01:43]} Be5 {[%emt 0:01:06]} 26. Rxb8+ {[%emt 0:00:58]}
Bxb8 {[%emt 0:00:32]} 27. Qb1 {[%emt 0:02:20]} Be5 {[%emt 0:03:23]} 28. Nf3 {
[%emt 0:02:27]} Qa1 {[%emt 0:01:57]} 29. Qxa1 {[%emt 0:00:24]} Bxa1 {[%emt 0:
00:00]} 30. Nfd2 {[%emt 0:00:59]} f5 {[%emt 0:01:35]} 31. Nf2 {[%emt 0:00:54]}
Ne5 {[%emt 0:01:07]} 32. Nb3 {[%emt 0:00:37]} Bc3 {[%emt 0:00:38]} 33. Nd1 {
[%emt 0:00:20]} Be1 {[%emt 0:00:15]} 34. Nb2 {[%emt 0:01:00]} Bxg3 {[%emt 0:00:
00]} 35. Kg1 {[%emt 0:00:09]} Bxh4 {[%emt 0:00:27]} 36. Kf1 {[%emt 0:00:07]}
Be7 {[%emt 0:00:32]} 37. Ke2 {[%emt 0:00:14]} h5 {[%emt 0:01:26]} 38. Na5 {
[%emt 0:00:01]} Bb4 {[%emt 0:01:30]} 39. Nb7 {[%emt 0:00:49]} Kf8 {[%emt 0:00:
00]} 40. d4 {[%emt 0:00:22]} Bc3 {[%emt 0:00:13]} 41. dxe5 {[%emt 0:30:37]}
Bxb2 {[%emt 0:30:03]} 42. Nd8 {[%emt 0:00:44]} a5 {[%emt 0:03:22]} 43. Nxc6 {
[%emt 0:01:27]} a4 {[%emt 0:00:10]} 44. Kd2 {[%emt 0:00:42]} Ke8 {[%emt 0:00:
00]} 45. Kc2 {[%emt 0:00:05]} a3 {[%emt 0:00:19]} 46. Kb3 {[%emt 0:00:15]} h4 {
[%emt 0:00:37]} 47. c5 {[%emt 0:01:20]} f4 {[%emt 0:00:13]} 48. Nb8 {[%emt 0:
00:00]} Bxe5 {[%emt 0:00:10]} 0-1

[Event "44th Chess Olympiad Open 2022"]
[Site "Chennai"]
[Date "2022.08.06"]
[Round "8.83"]
[White "Taleka, Jed Selu"]
[Black "Ismael, Mohamed Goumaneh"]
[Result "1-0"]
[WhiteElo "1672"]
[BlackElo "1473"]
[Annotator "NA RC"]
[PlyCount "107"]
[EventDate "2022.??.??"]
[TimeControl "60"]

1. e4 {[%emt 0:00:04]} e5 {[%emt 0:00:06]} 2. Nf3 {[%emt 0:00:12]} d6 {[%emt 0:
00:00]} 3. Bc4 {[%emt 0:00:16]} Be7 {[%emt 0:00:20]} 4. d3 {[%emt 0:00:22]} Nf6
{[%emt 0:00:09]} 5. Be3 {[%emt 0:00:31]} c6 {[%emt 0:01:56]} 6. c3 {[%emt 0:00:
00]} a5 {[%emt 0:00:12]} 7. a4 {[%emt 0:00:27]} O-O {[%emt 0:00:33]} 8. h3 {
[%emt 0:00:27]} Na6 {[%emt 0:01:18]} 9. Qb3 {[%emt 0:01:37]} Nc7 {[%emt 0:00:
00]} 10. Bb6 {[%emt 0:00:57]} Nd7 {[%emt 0:00:27]} 11. Bxc7 {[%emt 0:00:44]}
Qxc7 {[%emt 0:00:02]} 12. Nbd2 {[%emt 0:00:42]} Nc5 {[%emt 0:00:34]} 13. Qc2 {
[%emt 0:00:36]} Ne6 {[%emt 0:00:56]} 14. Bxe6 {[%emt 0:00:40]} fxe6 {[%emt 0:
00:00]} 15. Ke2 {[%emt 0:02:28]} d5 {[%emt 0:01:14]} 16. c4 {[%emt 0:00:31]}
Bd6 {[%emt 0:01:57]} 17. Rac1 {[%emt 0:00:44]} Qe7 {[%emt 0:01:21]} 18. c5 {
[%emt 0:02:12]} Bc7 {[%emt 0:01:00]} 19. Qc3 {[%emt 0:02:58]} Qf6 {[%emt 0:00:
00]} 20. g4 {[%emt 0:00:16]} g6 {[%emt 0:03:09]} 21. h4 {[%emt 0:00:48]} Bd7 {
[%emt 0:01:01]} 22. g5 {[%emt 0:01:20]} Qg7 {[%emt 0:00:27]} 23. Rcg1 {[%emt 0:
00:00]} Rf4 {[%emt 0:01:02]} 24. Rh3 {[%emt 0:01:48]} Raf8 {[%emt 0:00:15]} 25.
Rgh1 {[%emt 0:00:40]} Be8 {[%emt 0:01:05]} 26. Qb3 {[%emt 0:00:12]} Bd8 {
[%emt 0:00:38]} 27. Qc3 {[%emt 0:01:50]} Bc7 {[%emt 0:00:08]} 28. b4 {[%emt 0:
00:00]} axb4 {[%emt 0:00:18]} 29. Qxb4 {[%emt 0:00:02]} Bb8 {[%emt 0:01:07]}
30. Rb1 {[%emt 0:02:00]} R8f7 {[%emt 0:01:37]} 31. Qb6 {[%emt 0:00:20]} Rc7 {
[%emt 0:04:06]} 32. a5 {[%emt 0:00:17]} Rc8 {[%emt 0:00:02]} 33. a6 {[%emt 0:
00:00]} bxa6 {[%emt 0:00:08]} 34. Qxa6 {[%emt 0:00:47]} Bd7 {[%emt 0:01:57]}
35. Rb7 {[%emt 0:00:29]} Qe7 {[%emt 0:03:02]} 36. Rh1 {[%emt 0:00:57]} Rf7 {
[%emt 0:02:13]} 37. Rhb1 {[%emt 0:00:25]} Qf8 {[%emt 0:18:14]} 38. Qb6 {
[%emt 0:00:46]} Kg7 {[%emt 0:14:16]} 39. Rxb8 {[%emt 0:00:31]} Rxb8 {[%emt 0:
00:00]} 40. Qxb8 {[%emt 0:00:27]} Qxc5 {[%emt 0:00:47]} 41. Qxe5+ {[%emt 0:00:
00]} Kg8 {[%emt 0:29:13]} 42. Rb8+ {[%emt 0:00:55]} Rf8 {[%emt 0:00:07]} 43.
Rxf8+ {[%emt 0:00:32]} Qxf8 {[%emt 0:00:02]} 44. Qf6 {[%emt 0:00:55]} Qc8 {
[%emt 0:01:30]} 45. Ne5 {[%emt 0:00:20]} Be8 {[%emt 0:00:24]} 46. Ng4 {[%emt 0:
00:00]} h5 {[%emt 0:02:34]} 47. Nh6+ {[%emt 0:00:53]} Kh7 {[%emt 0:00:06]} 48.
Qe7+ {[%emt 0:00:18]} Bf7 {[%emt 0:00:54]} 49. Nxf7 {[%emt 0:00:32]} Kg8 {
[%emt 0:01:23]} 50. Nh6+ {[%emt 0:00:33]} Kh8 {[%emt 0:00:12]} 51. Qd8+ {
[%emt 0:00:41]} Qxd8 {[%emt 0:00:25]} 52. Nf7+ {[%emt 0:00:12]} Kg8 {[%emt 0:
00:00]} 53. Nxd8 {[%emt 0:00:03]} d4 {[%emt 0:01:43]} 54. Nxe6 {[%emt 0:00:52]}
1-0

[Event "44th Chess Olympiad Open 2022"]
[Site "Chennai"]
[Date "2022.08.06"]
[Round "8.84"]
[White "Senglek, Khonsavanh"]
[Black "dos Reis, Tito"]
[Result "1/2-1/2"]
[WhiteElo "1253"]
[BlackElo "1658"]
[Annotator "NA RC"]
[PlyCount "115"]
[EventDate "2022.??.??"]
[TimeControl "60"]

1. e4 {[%emt 0:00:16]} d6 {[%emt 0:00:30]} 2. d4 {[%emt 0:00:19]} Nf6 {[%emt 0:
00:00]} 3. Nc3 {[%emt 0:00:30]} c6 {[%emt 0:00:15]} 4. h3 {[%emt 0:00:28]} Qa5
{[%emt 0:00:16]} 5. Bd2 {[%emt 0:01:38]} Qb6 {[%emt 0:00:56]} 6. Bc1 {[%emt 0:
00:00]} e5 {[%emt 0:03:46]} 7. Nf3 {[%emt 0:00:24]} Qc7 {[%emt 0:01:36]} 8. Bg5
{[%emt 0:00:31]} Be7 {[%emt 0:00:26]} 9. Be2 {[%emt 0:05:42]} b5 {[%emt 0:00:
00]} 10. a3 {[%emt 0:00:47]} a5 {[%emt 0:00:26]} 11. d5 {[%emt 0:01:02]} cxd5 {
[%emt 0:02:50]} 12. Bxb5+ {[%emt 0:01:20]} Bd7 {[%emt 0:01:37]} 13. Bxd7+ {
[%emt 0:00:18]} Nbxd7 {[%emt 0:00:40]} 14. Nxd5 {[%emt 0:01:28]} Qc4 {[%emt 0:
00:00]} 15. Qd3 {[%emt 0:01:45]} Qxd3 {[%emt 0:04:03]} 16. cxd3 {[%emt 0:00:10]
} Nxd5 {[%emt 0:00:18]} 17. exd5 {[%emt 0:00:10]} Nb6 {[%emt 0:00:44]} 18. Bxe7
{[%emt 0:01:14]} Kxe7 {[%emt 0:00:14]} 19. Rc1 {[%emt 0:00:37]} Nxd5 {[%emt 0:
00:00]} 20. O-O {[%emt 0:00:21]} Rhb8 {[%emt 0:02:00]} 21. d4 {[%emt 0:03:03]}
f6 {[%emt 0:01:58]} 22. dxe5 {[%emt 0:01:05]} dxe5 {[%emt 0:00:20]} 23. Rfd1 {
[%emt 0:00:24]} Rd8 {[%emt 0:04:49]} 24. Rc5 {[%emt 0:06:16]} Ke6 {[%emt 0:00:
00]} 25. Rb5 {[%emt 0:02:20]} Rd7 {[%emt 0:01:02]} 26. Ne1 {[%emt 0:01:17]} Nc7
{[%emt 0:07:45]} 27. Rb6+ {[%emt 0:01:40]} Ke7 {[%emt 0:00:18]} 28. Rxd7+ {
[%emt 0:05:26]} Kxd7 {[%emt 0:00:13]} 29. Nc2 {[%emt 0:00:15]} Ra6 {[%emt 0:00:
00]} 30. Rb8 {[%emt 0:02:04]} h6 {[%emt 0:01:44]} 31. Ne3 {[%emt 0:01:21]} Ne6
{[%emt 0:08:02]} 32. Nf5 {[%emt 0:01:14]} Ra7 {[%emt 0:01:04]} 33. Rg8 {
[%emt 0:02:02]} Kc6 {[%emt 0:01:01]} 34. Kf1 {[%emt 0:07:12]} Rb7 {[%emt 0:00:
00]} 35. b4 {[%emt 0:00:39]} axb4 {[%emt 0:00:46]} 36. axb4 {[%emt 0:00:10]}
Rxb4 {[%emt 0:02:34]} 37. Nxg7 {[%emt 0:01:26]} Nf4 {[%emt 0:01:25]} 38. Rc8+ {
[%emt 0:00:11]} Kd5 {[%emt 0:01:11]} 39. Rc1 {[%emt 0:00:27]} Rb2 {[%emt 0:00:
00]} 40. Nf5 {[%emt 0:01:12]} h5 {[%emt 0:00:33]} 41. Ne3+ {[%emt 0:31:12]} Ke6
{[%emt 0:31:47]} 42. Rd1 {[%emt 0:01:03]} Ra2 {[%emt 0:01:52]} 43. Nc4 {
[%emt 0:04:23]} e4 {[%emt 0:02:13]} 44. Rd6+ {[%emt 0:01:49]} Ke7 {[%emt 0:00:
00]} 45. Rd1 {[%emt 0:00:16]} Nd3 {[%emt 0:00:33]} 46. f3 {[%emt 0:02:17]} f5 {
[%emt 0:01:50]} 47. fxe4 {[%emt 0:07:16]} fxe4 {[%emt 0:00:15]} 48. Rb1 {
[%emt 0:06:47]} Kf6 {[%emt 0:01:12]} 49. Rb5 {[%emt 0:00:22]} Ra1+ {[%emt 0:00:
00]} 50. Ke2 {[%emt 0:00:23]} Re1+ {[%emt 0:02:58]} 51. Kd2 {[%emt 0:00:06]}
Rg1 {[%emt 0:01:26]} 52. Ke3 {[%emt 0:01:39]} Re1+ {[%emt 0:02:54]} 53. Kd4 {
[%emt 0:00:09]} h4 {[%emt 0:01:18]} 54. Rh5 {[%emt 0:00:39]} Nf4 {[%emt 0:00:
00]} 55. Rxh4 {[%emt 0:00:40]} Nxg2 {[%emt 0:03:27]} 56. Rxe4 {[%emt 0:00:14]}
Rxe4+ {[%emt 0:00:20]} 57. Kd3 {[%emt 0:00:26]} Rd4+ 58. Kxd4 {[%emt 0:01:23]}
1/2-1/2

[Event "44th Chess Olympiad Open 2022"]
[Site "Chennai"]
[Date "2022.08.06"]
[Round "8.87"]
[White "Faulks, Nick"]
[Black "Masiala Mayuku, Eddy"]
[Result "1-0"]
[WhiteElo "1820"]
[BlackElo "1574"]
[Annotator "NA RC"]
[PlyCount "77"]
[EventDate "2022.??.??"]
[TimeControl "60"]

1. c4 {[%emt 0:00:04]} e5 {[%emt 0:00:32]} 2. Nc3 {[%emt 0:00:05]} Nc6 {
[%emt 0:00:21]} 3. e3 {[%emt 0:01:02]} g6 {[%emt 0:00:28]} 4. a3 {[%emt 0:00:
00]} Bg7 {[%emt 0:00:15]} 5. b4 {[%emt 0:00:22]} Nf6 {[%emt 0:00:38]} 6. Bb2 {
[%emt 0:00:19]} O-O {[%emt 0:02:21]} 7. d3 {[%emt 0:07:56]} Re8 {[%emt 0:00:24]
} 8. Be2 {[%emt 0:01:13]} d5 {[%emt 0:00:48]} 9. cxd5 {[%emt 0:00:27]} Nxd5 {
[%emt 0:00:46]} 10. Qc2 {[%emt 0:00:41]} Nce7 {[%emt 0:01:04]} 11. Nf3 {
[%emt 0:01:56]} c6 {[%emt 0:01:10]} 12. O-O {[%emt 0:01:54]} Nf5 {[%emt 0:00:
00]} 13. Rfe1 {[%emt 0:07:25]} Nh4 {[%emt 0:00:23]} 14. Rad1 {[%emt 0:02:42]}
Qe7 {[%emt 0:01:04]} 15. g3 {[%emt 0:04:26]} Nxf3+ {[%emt 0:00:25]} 16. Bxf3 {
[%emt 0:00:10]} Nxc3 {[%emt 0:00:53]} 17. Bxc3 {[%emt 0:01:07]} Qf6 {[%emt 0:
00:00]} 18. Bg2 {[%emt 0:00:42]} Qg5 {[%emt 0:01:07]} 19. Qb2 {[%emt 0:03:47]}
f6 {[%emt 0:01:41]} 20. b5 {[%emt 0:06:43]} Bd7 {[%emt 0:01:26]} 21. bxc6 {
[%emt 0:03:42]} Bxc6 {[%emt 0:00:45]} 22. Bxc6 {[%emt 0:00:23]} bxc6 {[%emt 0:
00:00]} 23. Qb7 {[%emt 0:05:02]} Rec8 {[%emt 0:00:58]} 24. d4 {[%emt 0:04:17]}
e4 {[%emt 0:00:28]} 25. Rb1 {[%emt 0:07:49]} h5 {[%emt 0:00:52]} 26. Rec1 {
[%emt 0:02:12]} h4 {[%emt 0:00:26]} 27. Qd7 {[%emt 0:02:08]} Rd8 {[%emt 0:00:
00]} 28. Qe6+ {[%emt 0:02:30]} Kh8 {[%emt 0:01:04]} 29. Qxe4 {[%emt 0:00:36]}
h3 {[%emt 0:00:50]} 30. Rb7 {[%emt 0:04:45]} f5 {[%emt 0:05:49]} 31. Qxc6 {
[%emt 0:10:40]} Rac8 {[%emt 0:00:00]} 32. Qf3 {[%emt 0:01:55]} Rxd4 {[%emt 0:
00:00]} 33. Rxg7 {[%emt 0:02:20]} Rxc3 {[%emt 0:02:34]} 34. Rxc3 {[%emt 0:00:
00]} Qd8 {[%emt 0:00:53]} 35. exd4 {[%emt 0:00:58]} Qxd4 {[%emt 0:00:47]} 36.
Rgc7 {[%emt 0:01:43]} Qe4 {[%emt 0:00:46]} 37. Qxe4 {[%emt 0:00:15]} fxe4 {
[%emt 0:00:16]} 38. Rb3 {[%emt 0:00:06]} e3 {[%emt 0:00:26]} 39. Rb8# {[%emt 0:
00:00]} 1-0

[Event "44th Chess Olympiad Open 2022"]
[Site "Chennai"]
[Date "2022.08.06"]
[Round "8.87"]
[White "Esungi, Guy Botetsi"]
[Black "Kovacova, Zuzana"]
[Result "0-1"]
[WhiteElo "1481"]
[BlackElo "2050"]
[Annotator "NA RC"]
[PlyCount "76"]
[EventDate "2022.??.??"]
[TimeControl "60"]

1. e4 {[%emt 0:00:14]} e5 {[%emt 0:00:08]} 2. Nf3 {[%emt 0:00:24]} Nc6 {
[%emt 0:00:05]} 3. Bc4 {[%emt 0:00:36]} Bc5 {[%emt 0:00:05]} 4. d3 {[%emt 0:00:
00]} Nf6 {[%emt 0:00:44]} 5. O-O {[%emt 0:01:35]} O-O {[%emt 0:00:29]} 6. Qe2 {
[%emt 0:01:17]} d6 {[%emt 0:00:56]} 7. Be3 {[%emt 0:00:37]} Bb6 {[%emt 0:00:25]
} 8. Bxb6 {[%emt 0:00:45]} axb6 {[%emt 0:00:03]} 9. c3 {[%emt 0:00:51]} Na5 {
[%emt 0:02:45]} 10. Nbd2 {[%emt 0:01:11]} Nxc4 {[%emt 0:00:42]} 11. Nxc4 {
[%emt 0:00:24]} Be6 {[%emt 0:03:13]} 12. b3 {[%emt 0:02:48]} Re8 {[%emt 0:00:
00]} 13. Ncd2 {[%emt 0:01:31]} Nh5 {[%emt 0:05:17]} 14. Ne1 {[%emt 0:02:44]}
Nf4 {[%emt 0:00:20]} 15. Qf3 {[%emt 0:00:48]} Qg5 {[%emt 0:00:48]} 16. Kh1 {
[%emt 0:01:44]} Nxg2 {[%emt 0:05:02]} 17. Qxg2 {[%emt 0:01:31]} Qxd2 {[%emt 0:
00:00]} 18. Rg1 {[%emt 0:00:23]} g6 {[%emt 0:00:49]} 19. Nf3 {[%emt 0:04:04]}
Qxd3 {[%emt 0:02:38]} 20. Nh4 {[%emt 0:03:34]} Qd2 {[%emt 0:11:45]} 21. Qf3 {
[%emt 0:01:55]} Qf4 {[%emt 0:08:34]} 22. Qxf4 {[%emt 0:00:55]} exf4 {[%emt 0:
00:00]} 23. f3 {[%emt 0:00:29]} d5 {[%emt 0:00:31]} 24. e5 {[%emt 0:01:44]} Kf8
{[%emt 0:02:05]} 25. Ng2 {[%emt 0:00:34]} Bf5 {[%emt 0:00:23]} 26. Rge1 {
[%emt 0:04:04]} g5 {[%emt 0:00:12]} 27. Re2 {[%emt 0:01:04]} Re6 {[%emt 0:00:
00]} 28. Ne1 {[%emt 0:00:32]} Rae8 {[%emt 0:00:22]} 29. Ng2 {[%emt 0:01:39]}
Rxe5 {[%emt 0:00:49]} 30. Rxe5 {[%emt 0:00:12]} Rxe5 {[%emt 0:00:03]} 31. Re1 {
[%emt 0:00:26]} f6 {[%emt 0:00:35]} 32. Rxe5 {[%emt 0:01:43]} fxe5 {[%emt 0:00:
00]} 33. Kg1 {[%emt 0:00:39]} e4 {[%emt 0:00:55]} 34. fxe4 {[%emt 0:04:10]}
dxe4 {[%emt 0:00:05]} 35. Kf2 {[%emt 0:01:26]} Ke7 {[%emt 0:00:17]} 36. Ne1 {
[%emt 0:00:36]} Kd6 {[%emt 0:00:24]} 37. Nc2 {[%emt 0:00:30]} e3+ {[%emt 0:00:
00]} 38. Kf3 {[%emt 0:01:16]} Bxc2 {[%emt 0:00:04]} 0-1